bitfinex/quotes_ETHUSD_20250808
["timestamp","ask_amount","ask_price","bid_price","bid_amount"]
[1754690661679,1.15936223,4040.3,4040.2,0.001]
[1754690661979,3.934,4040.3,4040.2,0.001]
[1754690663658,0.124,4040.3,4040.2,0.001]
[1754690663871,6.40806373,4040.3,4040.2,0.001]
[1754690664048,6.84056373,4040.3,4040.2,0.001]
[1754690664246,8.23302769,4040.3,4040.2,0.001]
[1754690664470,8.33216669,4040.3,4040.2,0.001]
[1754690665566,7.88116669,4040.3,4040.2,0.001]
[1754690666294,8.33216669,4040.3,4040.2,0.001]
[1754690668384,7.91896669,4040.3,4040.2,0.001]
[1754690668578,8.36996669,4040.3,4040.2,0.001]
[1754690668896,7.91896669,4040.3,4040.2,0.001]
[1754690669766,7.44866669,4040.3,4040.2,0.001]
[1754690669968,7.91896669,4040.3,4040.2,0.001]
[1754690671103,8.36996669,4040.3,4040.2,0.001]
[1754690672991,7.91896669,4040.3,4040.2,0.001]
[1754690673687,8.36996669,4040.3,4040.2,0.001]
[1754690673994,1.04060296,4040.3,4040.2,0.001]
[1754690674296,6.50120273,4040.3,4040.2,0.001]
[1754690674964,3.927,4040.3,4040.2,0.001]
[1754690675698,0.124,4040.3,4040.2,0.4341]
[1754690675889,3.927,4040.3,4040.2,0.8866]
[1754690676679,3.927,4040.3,4040.2,0.4535]
[1754690677277,3.927,4040.3,4040.2,0.001]
[1754690678824,3.925,4040.3,4040.2,2.47612499]
[1754690678966,3.925,4040.3,4040.2,0.8866]
[1754690680290,3.925,4040.3,4040.2,0.4535]
[1754690682405,3.925,4040.3,4040.2,0.8866]
[1754690682406,3.922,4040.3,4040.2,0.8866]
[1754690683104,3.922,4040.3,4040.2,3.36172499]
[1754690683598,3.922,4040.3,4040.2,0.8866]
[1754690683770,3.922,4040.3,4040.2,0.001]
[1754690683972,7.76379283,4040.3,4040.2,0.001]
[1754690684197,8.29608379,4040.3,4040.2,0.001]
[1754690687002,7.84508379,4040.3,4040.2,0.001]
[1754690687620,7.37478379,4040.3,4040.2,0.001]
[1754690687788,6.92935469,4040.3,4040.2,0.001]
[1754690688605,7.85065469,4040.3,4040.2,0.001]
[1754690689192,6.92935469,4040.3,4040.2,0.001]
[1754690689881,3.13135469,4040.3,4040.2,0.001]
[1754690690210,3.92,4040.3,4040.2,0.001]
[1754690690409,4.45229096,4040.3,4040.2,0.001]
[1754690691287,3.92,4040.3,4040.2,0.001]
[1754690691489,4.45229096,4040.3,4040.2,0.001]
[1754690692019,6.92735469,4040.3,4040.2,0.001]
[1754690693704,4.45029096,4040.3,4040.2,0.001]
[1754690693909,3.918,4040.3,4040.2,0.001]
[1754690694210,3.918,4040.3,4040.2,0.4956]
[1754690694617,3.918,4040.3,4040.2,0.001]
[1754690695721,3.918,4040.3,4040.2,0.4956]
[1754690696242,3.918,4040.3,4040.2,0.001]
[1754690696444,6.88255283,4040.3,4040.2,0.001]
[1754690696591,8.35204379,4040.3,4040.2,0.001]
[1754690700648,16.83099842,4040.3,4040.2,0.001]
[1754690701002,16.83099842,4040.3,4040.1,0.001]
[1754690701003,2.47512499,4040.2,4040.1,1e-08]
[1754690701331,2.47512499,4040.2,4039.8,1e-08]
[1754690701332,3.02530879,4039.9,4039.8,1e-08]
[1754690701505,17.10421327,4039.9,4039.8,1e-08]
[1754690701703,17.49141327,4039.9,4039.8,1e-08]
[1754690702435,3.02537006,4039.8,4039.7,1e-08]
[1754690702736,8.7643223,4039.8,4039.7,1e-08]
[1754690703229,4.9693223,4039.8,4039.7,1e-08]
[1754690703533,9.57992704,4039.8,4039.7,1e-08]
[1754690703830,9.70392704,4039.8,4039.7,1e-08]
[1754690704430,10.36762289,4039.8,4039.7,1e-08]
[1754690706321,9.70392704,4039.8,4039.7,1e-08]
[1754690706634,9.21132704,4039.8,4039.7,1e-08]
[1754690707017,2.49535698,4039.8,4039.7,1e-08]
[1754690707219,6.39637006,4039.8,4039.7,1e-08]
[1754690707540,6.92878366,4039.8,4039.7,1e-08]
[1754690708151,4.4534136,4039.8,4039.7,1e-08]
[1754690708323,6.39637006,4039.8,4039.7,1e-08]
[1754690708523,6.92878366,4039.8,4039.7,1e-08]
[1754690708722,7.88740163,4039.8,4039.7,1e-08]
[1754690708955,5.41203157,4039.8,4039.7,1e-08]
[1754690709262,3.921,4039.8,4039.7,1e-08]
[1754690709422,0.124,4039.8,4039.7,1e-08]
[1754690709621,0.124,4039.8,4039.7,0.92280001]
[1754690709622,3.92,4039.8,4039.7,0.92280001]
[1754690710266,3.92,4039.8,4039.7,0.49460001]
[1754690710667,3.92,4039.8,4039.7,2.97003135]
[1754690710869,3.92,4039.8,4039.7,0.92280001]
[1754690711074,3.92,4039.8,4039.7,3.39823135]
[1754690711458,3.92,4039.8,4039.7,0.49460001]
[1754690711636,3.92,4039.8,4039.7,1e-08]
[1754690713047,4.7566,4039.8,4039.7,1e-08]
[1754690713243,4.312,4039.8,4039.7,1e-08]
[1754690713443,3.92,4039.8,4039.7,1e-08]
[1754690721465,6.39537006,4039.8,4039.7,1e-08]
[1754690727894,7.37631252,4039.8,4039.7,1e-08]
[1754690731357,7.37631252,4039.8,4039.6,0.001]
[1754690731358,2.47543134,4039.7,4039.6,1e-08]
[1754690731598,3.9458738,4039.7,4039.6,1e-08]
[1754690731760,3.9458738,4039.7,4039.3,0.001]
[1754690731761,2.47561519,4039.4,4039.3,0.001]
[1754690731965,2.47561519,4039.4,4039.1,1e-08]
[1754690731966,2.47567647,4039.3,4039.1,1e-08]
[1754690732187,7.46033364,4039.2,4039.1,1e-08]
[1754690732404,2.47592166,4038.9,4038.8,1e-08]
[1754690732726,2.47592166,4038.9,4037.6,0.44800001]
[1754690732727,2.47655648,4037.9,4037.6,0.44800001]
[1754690732895,3.79,4037.8,4037.6,0.44800001]
[1754690733216,0.124,4037.7,4037.1,3.04]
[1754690733419,0.124,4037.7,4037.6,0.4536]
[1754690733625,0.124,4037.7,4037.2,0.4536]
[1754690733626,3.914,4037.7,4037.2,0.4536]
[1754690733830,2.47671884,4037.6,4037.3,0.4536]
[1754690734126,6.26678018,4037.5,4037.4,0.4536]
[1754690734734,6.39078018,4037.5,4037.4,0.9106]
[1754690735923,2.47690643,4037.3,4037.1,0.04]
[1754690736216,2.47672075,4037.6,4037.1,0.4936]
[1754690736217,3.79,4037.2,4037.1,0.4936]
[1754690736520,3.914,4037.2,4037.1,0.4936]
[1754690736686,3.914,4037.2,4037.1,0.9506]
[1754690736883,3.914,4037.2,4037.1,0.497]
[1754690737491,3.914,4037.2,4037.1,0.04]
[1754690738128,6.39096423,4037.2,4037.1,0.04]
[1754690739595,3.914,4037.2,4037.1,0.04]
[1754690740635,3.914,4037.2,4037.1,0.9506]
[1754690741346,6.39096423,4037.2,4037.1,0.497]
[1754690741491,3.914,4037.2,4037.1,0.497]
[1754690742527,3.914,4037.2,4037.1,0.9506]
[1754690742702,0.124,4037.2,4037.1,0.9506]
[1754690742907,3.791,4037.2,4037.1,3.42762558]
[1754690743103,3.791,4037.2,4037.1,15.79705517]
[1754690743826,3.791,4037.2,4037.1,7.31810054]
[1754690744216,2.47617089,4038.5,4037.4,2.47679675]
[1754690744217,0.743928,4038.5,4037.4,2.47679675]
[1754690744438,3.791,4038.4,4037.9,5.47653483]
[1754690744605,3.791,4038.3,4038.2,2.47635084]
[1754690744819,3.791,4038.3,4038.2,3.9106]
[1754690745032,3.791,4038.3,4038.2,3.457]
[1754690745827,3.791,4038.3,4038.2,0.457]
[1754690746302,3.791,4038.3,4038.0,0.4536]
[1754690746506,3.791,4038.3,4038.0,0.9106]
[1754690746739,3.791,4038.3,4037.7,0.457]
[1754690746914,3.791,4038.3,4037.8,5.47659485]
[1754690747105,3.791,4038.3,4037.9,0.457]
[1754690748308,3.791,4038.3,4037.9,2.93013383]
[1754690748511,3.791,4038.3,4038.0,0.457]
[1754690749043,3.791,4038.3,4038.0,2.93346926]
[1754690749441,3.791,4038.3,4038.1,0.457]
[1754690749629,3.791,4038.3,4038.1,0.9106]
[1754690750032,5.946,4038.9,4038.2,0.9106]
[1754690750339,4.67719662,4038.8,4038.2,0.9106]
[1754690750520,2.47604898,4038.7,4038.2,0.9106]
[1754690751565,4.67719662,4038.8,4038.2,0.9106]
[1754690751722,4.67719662,4038.8,4038.2,0.457]
[1754690752531,7.15319087,4038.8,4038.2,0.457]
[1754690752863,1.80502909,4038.7,4037.9,2.47652505]
[1754690753033,2.29452909,4038.7,4037.9,2.47652505]
[1754690753366,0.4501,4038.6,4037.9,2.47652505]
[1754690753540,6.26618145,4038.5,4037.9,2.47652505]
[1754690753855,3.79,4038.5,4037.9,2.47652505]
[1754690754238,0.124,4038.2,4037.9,2.47652505]
[1754690754439,3.79,4038.1,4037.9,2.93232505]
[1754690754829,3.79,4038.1,4038.0,2.4764735]
[1754690756652,3.79,4038.1,4037.9,2.93231688]
[1754690757262,3.79,4038.1,4038.0,2.4764735]
[1754690758183,3.79,4038.1,4038.0,3.4059735]
[1754690758357,0.124,4038.2,4038.1,6.02641217]
[1754690758691,3.79,4038.5,4038.4,2.4762282]
[1754690758827,3.79,4038.5,4038.4,6.4057282]
[1754690759765,3.79,4038.5,4038.0,3.06272545]
[1754690759766,6.7294,4038.5,4035.1,0.04]
[1754690759965,8.47895463,4037.1,4035.2,0.4558]
[1754690760272,2.47751653,4036.3,4035.7,0.12917863]
[1754690760427,6.34851653,4036.3,4035.4,2.47806442]
[1754690760627,6.81341653,4036.3,4035.2,2.95187591]
[1754690760955,6.81341653,4036.3,4035.2,3.4737]
[1754690761266,6.81341653,4036.3,4035.2,2.95189086]
[1754690762128,4.3359,4036.3,4035.2,0.4737]
[1754690762334,6.34851653,4036.3,4035.7,3.0]
[1754690762942,3.871,4036.3,4035.7,3.0]
[1754690763646,0.4649,4036.6,4035.7,3.0]
[1754690763852,3.867,4036.5,4035.9,3.0]
[1754690764169,3.867,4036.5,4035.8,2.47881152]
[1754690764170,2.47751653,4036.3,4035.8,0.001]
[1754690764670,3.42691653,4036.3,4035.8,0.001]
[1754690765040,2.94241653,4036.3,4035.8,0.001]
[1754690765235,3.42691653,4036.3,4035.8,0.001]
[1754690765650,2.94241653,4036.3,4035.8,0.001]
[1754690765862,2.47757791,4036.2,4036.1,0.0308196]
[1754690766142,6.34457791,4036.2,4036.1,0.0308196]
[1754690766561,3.867,4036.2,4036.1,0.0308196]
[1754690767649,2.47694851,4037.3,4036.1,9.43927423]
[1754690767850,0.4649,4038.0,4036.6,3.0]
[1754690768080,0.4649,4038.0,4036.9,2.47712972]
[1754690768371,3.865,4037.9,4036.8,3.0]
[1754690768679,6.34154812,4037.9,4036.8,3.0]
[1754690768834,2.47661229,4037.8,4037.0,5.47707099]
[1754690769039,4.84174107,4037.9,4037.1,2.47698408]
[1754690769040,7.31829524,4037.9,4037.1,2.47698408]
[1754690769248,7.31829524,4037.9,4037.2,2.47695705]
[1754690769950,3.42599616,4037.8,4036.5,2.47737275]
[1754690770154,2.4767872,4037.5,4036.7,2.47722198]
[1754690770373,3.863,4037.4,4036.8,2.47719602]
[1754690770778,3.863,4037.4,4036.9,2.47714449]
[1754690770973,4.3279,4037.4,4036.9,2.47714449]
[1754690771189,0.124,4037.1,4037.0,0.9295]
[1754690771485,3.987,4037.1,4037.0,3.0]
[1754690773390,5.3351,4037.1,4036.1,0.4866196]
[1754690773760,0.124,4036.5,4036.1,0.0308196]
[1754690773996,3.863,4036.4,4036.1,0.0308196]
[1754690774173,0.124,4036.2,4036.1,0.0308196]
[1754690774861,1.0734,4036.2,4036.1,0.0308196]
[1754690776453,1.81478969,4036.2,4036.1,0.0308196]
[1754690777271,1.33028969,4036.2,4036.1,0.0308196]
[1754690778599,5.19228969,4036.2,4036.1,0.0308196]
[1754690778901,4.72738969,4036.2,4036.1,0.0308196]
[1754690779806,0.124,4036.2,4036.1,6.4379589]
[1754690779968,3.983,4036.2,4036.1,6.4379589]
[1754690780296,3.983,4036.2,4036.1,0.0308196]
[1754690780297,4.4479,4036.2,4036.1,0.0308196]
[1754690780700,3.983,4036.2,4036.1,2.5084589]
[1754690781075,3.983,4036.2,4036.1,5.9642589]
[1754690781076,0.124,4036.2,4036.1,5.9642589]
[1754690781271,0.124,4036.2,4036.1,7.28226089]
[1754690781272,3.984,4036.2,4036.1,7.28226089]
[1754690781596,3.984,4036.2,4036.1,5.9642589]
[1754690782295,3.984,4036.2,4036.1,5.5084589]
[1754690782496,3.984,4036.2,4036.1,3.0308196]
[1754690783095,4.4489,4036.2,4036.1,3.0308196]
[1754690783710,3.984,4036.2,4036.1,3.0308196]
[1754690784673,4.4312,4036.2,4036.1,3.0308196]
[1754690785401,4.8993,4036.2,4036.1,3.0308196]
[1754690785605,3.984,4036.2,4036.1,3.0308196]
[1754690786211,0.124,4036.2,4036.1,3.0308196]
[1754690786411,3.979,4036.2,4036.1,3.0308196]
[1754690787078,0.124,4036.2,4036.1,3.0308196]
[1754690787594,3.978,4036.2,4036.1,3.0308196]
[1754690790833,3.974,4036.2,4036.1,6.0075589]
[1754690790981,3.974,4036.2,4036.1,0.0308196]
[1754690792202,3.974,4036.2,4036.1,2.5084589]
[1754690792407,3.974,4036.2,4036.1,0.0308196]
[1754690792817,3.974,4036.2,4036.1,6.0075589]
[1754690793041,0.124,4036.2,4036.1,6.4387589]
[1754690793333,3.973,4036.2,4036.1,5.5084589]
[1754690794909,2.47788487,4035.7,4035.6,0.001]
[1754690795109,2.47813049,4035.3,4035.2,0.001]
[1754690795437,7.29043049,4035.3,4035.2,0.001]
[1754690795613,7.82082077,4035.3,4035.2,0.001]
[1754690795814,8.85070779,4035.3,4035.2,0.001]
[1754690796021,8.84970779,4035.3,4035.2,0.001]
[1754690796242,8.31931751,4035.3,4035.2,0.001]
[1754690797315,2.47813049,4035.3,4035.2,0.001]
[1754690797513,6.81933049,4035.3,4035.2,0.001]
[1754690797920,4.3422,4035.3,4035.2,0.001]
[1754690798121,4.8103,4035.3,4035.2,0.001]
[1754690798324,10.62447501,4034.2,4033.1,0.044]
[1754690798547,0.55,4034.9,4033.1,0.044]
[1754690798548,2.4789291,4034.0,4033.1,0.044]
[1754690798837,0.52878377,4034.0,4033.1,0.044]
[1754690799019,0.9153,4033.9,4033.1,0.044]
[1754690799215,2.47929786,4033.4,4033.1,0.044]
[1754690799428,6.39429786,4033.4,4033.1,0.044]
[1754690799627,8.19694587,4033.4,4033.1,0.044]
[1754690799930,8.29625987,4033.4,4033.1,0.044]
[1754690800435,7.82815987,4033.4,4033.1,0.044]
[1754690800613,7.72884587,4033.4,4033.1,0.044]
[1754690800810,8.19694587,4033.4,4033.1,0.044]
[1754690801520,8.72403567,4033.4,4033.1,0.044]
[1754690802150,2.4794208,4033.2,4033.1,0.044]
[1754690802346,2.4794208,4033.2,4026.0,5.75779205]
[1754690802347,2.48126643,4030.2,4026.0,5.75779205]
[1754690802550,2.48070328,4031.2,4030.2,2.293911]
[1754690802551,2.48120487,4030.3,4030.2,2.293911]
[1754690802715,5.953,4031.0,4028.8,0.4991]
[1754690802716,0.1,4029.5,4028.8,10.62447501]
[1754690802912,0.1,4030.3,4029.4,10.62447501]
[1754690803124,0.1,4030.1,4028.8,1.0624475]
[1754690803363,0.1,4028.1,4026.9,10.62447501]
[1754690803528,10.47502699,4030.0,4027.5,10.62447501]
[1754690803529,4.06,4028.4,4027.5,10.62447501]
[1754690803716,4.061,4028.4,4027.6,1.0624475]
[1754690803952,4.061,4028.4,4028.3,2.48243675]
[1754690804197,4.061,4028.4,4027.6,1.0624475]
[1754690804349,4.061,4028.4,4028.3,2.48243675]
[1754690804554,4.061,4028.4,4028.3,2.91363675]
[1754690804958,0.4472,4029.8,4028.3,2.91363675]
[1754690804959,0.224,4028.8,4028.7,2.48214953]
[1754690805162,4.162,4029.1,4028.2,0.124]
[1754690805458,4.162,4029.1,4027.9,0.4312]
[1754690805459,0.18971543,4030.1,4028.4,2.48233969]
[1754690805460,0.1,4028.8,4028.4,2.48233969]
[1754690805659,0.1,4028.8,4028.4,0.24823397]
[1754690805660,4.063,4028.7,4028.4,0.24823397]
[1754690805982,4.063,4028.7,4028.6,2.48225189]
[1754690806162,4.063,4028.7,4028.5,2.48229652]
[1754690806364,4.063,4028.7,4028.6,2.48225189]
[1754690806690,4.063,4028.7,4027.8,3.0]
[1754690806691,4.063,4028.7,4028.4,2.48232285]
[1754690806851,4.063,4028.7,4027.4,0.55]
[1754690807193,0.1,4029.8,4029.7,2.48157431]
[1754690807404,0.1,4029.6,4027.7,3.0]
[1754690807687,0.06482699,4029.9,4028.6,5.48225189]
[1754690807688,0.04,4029.9,4028.6,5.48225189]
[1754690807878,4.111,4029.9,4029.0,0.55]
[1754690808079,4.111,4029.9,4028.7,1.41290818]
[1754690808080,4.111,4029.9,4029.7,2.48153844]
[1754690808258,4.111,4029.9,4029.8,2.91271273]
[1754690808259,0.04,4029.9,4029.8,2.91271273]
[1754690808453,0.04,4029.9,4029.8,5.91271273]
[1754690811294,0.04,4029.9,4029.8,5.48151273]
[1754690811508,0.14,4029.9,4029.8,3.0]
[1754690811708,0.5872,4029.9,4029.8,3.0]
[1754690811913,4.209,4029.9,4029.8,3.0]
[1754690813276,4.209,4029.9,4029.8,5.48151273]
[1754690813799,4.109,4029.9,4029.8,5.48151273]
[1754690814214,0.04,4029.9,4029.8,6.32631273]
[1754690814403,0.04,4029.9,4029.8,6.87631273]
[1754690815016,1e-08,4029.9,4029.8,7.37211273]
[1754690815218,1e-08,4030.9,4030.8,3.03089709]
[1754690815433,1e-08,4030.9,4030.8,6.15489709]
[1754690815731,1e-08,4030.9,4030.8,8.00260527]
[1754690816022,1e-08,4030.9,4030.8,8.49840527]
[1754690817233,1e-08,4030.9,4030.8,17.42817927]
[1754690817526,0.1,4032.7,4032.6,2.47973284]
[1754690817727,0.1,4033.1,4032.8,2.47966673]
[1754690818189,0.164,4032.9,4032.8,2.47966673]
[1754690819011,4.334,4032.9,4032.8,2.47966673]
[1754690819634,4.234,4032.9,4032.8,2.47966673]
[1754690819905,0.164,4032.9,4032.7,2.47972716]
[1754690820120,0.1,4032.8,4032.7,2.47972716]
[1754690820640,0.164,4032.9,4032.8,2.47966673]
[1754690820943,0.1,4032.8,4032.7,2.4797077]
[1754690821444,0.164,4032.9,4032.8,2.47966673]
[1754690825014,0.1,4032.7,4031.4,3.0]
[1754690825233,0.124,4032.2,4032.0,2.48014896]
[1754690825433,0.124,4032.2,4030.9,0.4348]
[1754690825434,4.5095,4032.1,4030.9,0.4348]
[1754690825752,4.5095,4032.1,4031.5,5.48046632]
[1754690826047,0.1,4031.9,4031.4,0.124]
[1754690826438,0.124,4031.5,4030.6,2.48101795]
[1754690826639,0.124,4031.5,4030.1,0.04]
[1754690826640,4.052,4031.5,4031.4,2.48052785]
[1754690829052,0.124,4031.7,4031.6,2.4804048]
[1754690829253,4.57356145,4031.7,4031.6,5.4804048]
[1754690829530,4.047,4031.7,4031.6,5.4804048]
[1754690829872,0.124,4032.6,4032.5,2.4798512]
[1754690830035,0.75078688,4032.6,4032.5,2.4798512]
[1754690830638,0.65078688,4032.6,4032.5,2.4798512]
[1754690831230,0.75078688,4032.6,4032.5,2.4798512]
[1754690831434,0.224,4032.6,4032.5,2.4798512]
[1754690832362,4.047,4032.7,4032.6,5.47978971]
[1754690835074,0.166,4032.9,4032.8,5.47966673]
[1754690835280,4.202,4032.9,4032.8,5.47966673]
[1754690835486,0.166,4032.9,4032.8,5.47966673]
[1754690835681,0.042,4032.9,4032.8,5.47966673]
[1754690836091,0.042,4032.9,4032.8,6.58846673]
[1754690836395,0.042,4032.9,4032.8,7.49528623]
[1754690836795,1e-08,4032.9,4032.8,7.49528623]
[1754690836983,1e-08,4032.9,4032.8,7.99108623]
[1754690837384,1e-08,4032.9,4032.8,7.06048623]
[1754690837591,1e-08,4032.9,4032.8,6.15366673]
[1754690844198,1e-08,4032.9,4032.8,10.62726673]
[1754690845402,1e-08,4032.9,4032.8,21.25642662]
[1754690847100,1e-08,4032.9,4032.8,25.56642662]
[1754690847698,1e-08,4033.4,4033.3,16.65851922]
[1754690847874,1e-08,4033.4,4033.3,20.66951922]
[1754690848073,1e-08,4033.4,4033.3,21.24411922]
[1754690849826,1e-08,4033.4,4033.3,20.79351922]
[1754690852594,1e-08,4033.9,4033.8,2.47905201]
[1754690852819,1e-08,4033.9,4033.8,20.9081171]
[1754690853008,1e-08,4033.9,4033.8,39.5546171]
[1754690853212,0.04,4034.9,4034.8,2.47843759]
[1754690853606,0.5065,4034.9,4034.8,5.47843759]
[1754690854729,0.5065,4034.9,4034.8,6.02843759]
[1754690854730,0.04,4034.9,4034.8,6.02843759]
[1754690855031,0.04,4034.9,4034.8,6.89153271]
[1754690855198,0.04,4034.9,4034.8,6.02843759]
[1754690855733,0.04,4034.9,4034.4,2.47865641]
[1754690855734,1.0017,4034.9,4034.4,2.47863281]
[1754690855928,0.04,4034.9,4034.5,2.47857909]
[1754690856232,0.9617,4034.8,4034.5,2.47857909]
[1754690856397,0.4952,4034.7,4034.6,2.47854978]
[1754690856603,4.9717,4034.7,4034.5,2.47857138]
[1754690856804,4.01,4034.7,4034.5,2.47857138]
[1754690857114,0.9617,4034.6,4034.4,2.47866186]
[1754690857526,0.9617,4034.5,4034.4,2.47866186]
[1754690860320,4.01,4034.7,4034.3,2.47872601]
[1754690860545,4.01,4034.7,4034.5,2.47857995]
[1754690860707,4.5052,4034.7,4034.6,2.47856045]
[1754690861121,4.9717,4034.7,4034.6,2.47856045]
[1754690862530,0.04,4034.9,4034.8,2.47843759]
[1754690862706,4.037,4034.9,4034.8,2.47843759]
[1754690862906,4.5035,4034.9,4034.8,2.47843759]
[1754690863203,4.037,4034.9,4033.8,6.997]
[1754690863403,4.037,4034.9,4034.8,2.47843759]
[1754690863615,4.5035,4034.9,4034.8,2.47843759]
[1754690863821,4.4535,4034.9,4034.8,2.47843759]
[1754690864229,4.9487,4034.9,4034.5,2.4786095]
[1754690864435,0.1,4034.5,4033.6,0.55]
[1754690864643,3.994,4034.4,4034.2,2.47875602]
[1754690865009,0.4665,4034.3,4034.2,2.47875602]
[1754690865844,0.5905,4034.3,4034.2,2.47875602]
[1754690873046,0.124,4034.3,4034.2,2.47875602]
[1754690873425,4.101,4034.3,4034.2,2.47875602]
[1754690873628,0.124,4034.3,4034.2,6.27452272]
[1754690874021,4.074,4034.5,4034.4,2.47868332]
[1754690885973,0.124,4034.6,4034.5,5.47862188]
[1754690885974,4.077,4034.6,4034.5,5.47862188]
[1754690886177,4.077,4034.6,4034.5,6.49762188]
[1754690886380,3.953,4034.6,4034.5,7.9502524]
[1754690886684,0.1,4035.2,4035.1,2.47825332]
[1754690886869,4.051,4035.2,4035.1,2.47825332]
[1754690887779,0.124,4035.3,4035.2,2.47819191]
[1754690888082,4.074,4035.3,4035.2,2.47819191]
[1754690888375,3.95,4035.3,4035.2,5.47819191]
[1754690888581,3.95,4035.3,4035.2,5.97246957]
[1754690888959,3.95,4035.3,4035.2,6.44146957]
[1754690889276,3.949,4035.4,4035.3,5.47813049]
[1754690889654,3.949,4035.4,4035.3,2.94713049]
[1754690889856,3.949,4035.4,4035.3,6.07113049]
[1754690890077,0.002,4035.4,4035.3,7.5254905]
[1754690893466,0.4433,4035.4,4035.3,3.0]
[1754690893670,0.1,4035.2,4034.0,2.4789061]
[1754690893842,0.1,4034.9,4034.6,2.47855137]
[1754690894057,0.9082,4034.8,4034.4,2.47868332]
[1754690894369,4.8542,4034.7,4033.9,2.47899055]
[1754690894566,4.8542,4034.7,4034.6,2.47856045]
[1754690903188,3.946,4034.7,4034.6,2.47856045]
[1754690903870,3.946,4034.7,4034.6,5.94756045]
[1754690904271,0.1,4035.2,4035.1,2.47825332]
[1754690904595,3.929,4035.2,4035.1,2.47825332]
[1754690906769,0.002,4035.4,4035.3,6.02813049]
[1754690907401,0.002,4035.4,4035.3,10.88483049]
[1754690908704,0.002,4035.4,4035.3,10.88183049]
[1754690911407,1e-08,4035.4,4035.3,7.08183049]
[1754690912072,1e-08,4035.4,4035.3,11.39183049]
[1754690912410,1e-08,4035.4,4035.3,15.16514141]
[1754690914618,0.92690001,4035.4,4035.3,5.47813049]
[1754690914906,0.92690001,4035.4,4035.3,3.0]
[1754690915097,0.1,4035.2,4035.1,2.47825086]
[1754690915404,1.0269,4035.2,4035.0,2.47830589]
[1754690915708,4.8439,4035.1,4034.1,0.001]
[1754690915909,0.1,4034.7,4034.6,2.47856045]
[1754690916275,1.0269,4034.7,4034.6,2.47856045]
[1754690917804,0.1,4034.7,4034.6,2.47856045]
[1754690918714,1.0269,4034.7,4034.6,2.47856045]
[1754690920010,0.1,4034.7,4034.6,2.47856045]
[1754690924715,0.1,4035.0,4034.9,2.47837616]
[1754690925019,1.0269,4035.0,4034.9,2.47837616]
[1754690929234,0.1,4035.0,4034.9,2.47837616]
[1754690930704,0.1,4034.7,4034.5,0.124]
[1754690930905,4.8239,4034.6,4034.5,2.4786047]
[1754690931117,4.8239,4034.6,4034.4,3.001]
[1754690931118,5.45269,4034.6,4034.4,0.001]
[1754690931427,1.0509,4034.5,4034.4,0.001]
[1754690931790,0.611,4034.5,4034.4,0.001]
[1754690931991,1.0509,4034.5,4034.4,0.001]
[1754690933595,0.5639,4034.5,4034.4,0.001]
[1754690933815,1.557469,4034.5,4034.4,0.001]
[1754690935614,1.0509,4034.5,4034.4,0.001]
[1754690940614,0.5639,4034.5,4034.4,0.001]
[1754690941632,0.124,4034.5,4034.4,0.001]
[1754690941941,0.5718,4034.5,4034.4,0.001]
[1754690943155,4.02,4034.5,4034.4,2.47968332]
[1754690949162,0.124,4034.5,4034.4,5.94818332]
[1754690949348,4.01,4034.5,4034.4,5.94818332]
[1754690949660,4.01,4034.5,4034.4,6.41368332]
[1754690949956,3.886,4034.5,4034.4,6.41368332]
[1754690951431,0.1,4034.7,4034.6,2.47856045]
[1754690951659,0.124,4034.9,4034.8,2.47843759]
[1754690951963,3.884,4034.9,4034.8,2.47843759]
[1754690953966,3.884,4034.9,4034.8,5.94693759]
[1754690954163,0.1,4035.0,4034.9,2.47837616]
[1754690954462,3.981,4035.0,4034.9,2.94687616]
[1754690955033,0.1,4035.0,4034.9,2.47837616]
[1754690955235,0.1,4035.3,4035.2,2.47819191]
[1754690955434,3.98,4035.3,4035.2,6.53619191]
[1754690956866,0.1,4035.3,4035.2,6.53619191]
[1754690957064,1e-08,4035.4,4035.3,6.02813049]
[1754690957439,1e-08,4035.4,4035.3,6.96213049]
[1754690957978,1e-08,4035.4,4035.3,15.45992123]
[1754690958275,0.10000001,4035.4,4035.3,15.45992123]
[1754690960372,0.10000001,4035.4,4035.3,14.99442123]
[1754690960567,1e-08,4035.4,4035.3,14.99442123]
[1754690960869,1e-08,4035.4,4035.3,15.45992123]
[1754690961382,0.10000001,4035.4,4035.3,15.45992123]
[1754690963282,1e-08,4035.4,4035.3,15.45992123]
[1754690963852,1e-08,4035.4,4035.3,15.58392123]
[1754690974180,1e-08,4035.4,4035.3,19.89392123]
[1754690974557,1e-08,4035.7,4035.6,3.02794627]
[1754690974791,1e-08,4035.8,4035.7,3.02788487]
[1754690975010,1e-08,4035.8,4035.7,14.52567561]
[1754690975156,1e-08,4035.8,4035.7,15.42807561]
[1754690975786,0.002,4035.9,4035.7,15.42807561]
[1754690975992,0.002,4035.9,4035.8,10.79622347]
[1754690975993,1e-08,4035.9,4035.8,10.79622347]
[1754690978193,1e-08,4036.2,4036.1,0.55]
[1754690978369,1e-08,4036.2,4036.1,18.39043004]
[1754690978572,1e-08,4036.5,4036.4,3.02745515]
[1754690978785,1e-08,4036.7,4036.6,2.4773324]
[1754690978961,0.04,4036.9,4036.6,2.4773324]
[1754690978962,1e-08,4036.9,4036.8,12.04779074]
[1754690979160,1e-08,4036.9,4036.8,18.51400041]
[1754690979371,1e-08,4036.9,4036.8,19.41640041]
[1754690981216,0.002,4037.5,4037.4,3.02684153]